[Event "3rd Rio Open 2024"]
[Site "Rio de Janeiro"]
[Date "2024.04.23"]
[Round "1.1"]
[White "Laba, Otavio De Souza"]
[Black "Fier, Alexandr"]
[Result "0-1"]
[ECO "A69"]
[WhiteElo "1879"]
[BlackElo "2566"]
[Annotator "TA"]
[PlyCount "50"]
[EventDate "2024.04.12"]
[EventType "swiss"]
[EventCountry "BRA"]
[SourceTitle "playchess.com"]
[Source "ChessBase"]
[SourceQuality "1"]
[TimeControl "5400+30"]

{[%evp 18,50,-31,-96,-27,-18,19,-115,-16,-136,-45,-137,-79,-187,-64,-93,-97,-256,-258,-273,-284,-285,-271,-279,-266,-416,-398,-657,-622,-981,-984,-1003,-965,-1010,-1000]} 1. d4 {[%emt 0:00:04]} Nf6 {[%emt 0:32:48]} 2. c4 {[%emt 0:00:02]} c5 {[%emt 0:00:06]} 3. d5 {[%emt 0:00:04]} e6 {[%emt 0:00:04]} 4. Nc3 {[%emt 0:00:14]} exd5 {[%emt 0:00:04]} 5. cxd5 {[%emt 0:00:08]} d6 {[%emt 0:00:02]} 6. e4 {[%emt 0:00:17]} g6 {[%emt 0:00:03]} 7. f4 {[%emt 0:00:24]} Bg7 {[%emt 0:00:11]} 8. Nf3 {[%emt 0:00:13]} O-O {[%emt 0:00:06]} 9. Be2 {[%emt 0:00:50]} Re8 {[%emt 0:00:22]} 10. Qc2 {[%emt 0:00:27]} (10. Nd2 $15) 10... Bg4 {[%emt 0:01:02]} (10... c4 $17 11. O-O (11. Bxc4 Nxe4 12. Nxe4 Bf5 $17) 11... b5) 11. O-O $11 {[%emt 0:05:59]} Nbd7 {[%emt 0:00:04][%cal Oc5c4]} 12. a4 {[%emt 0:02:35]} (12. h3 $11 {keeps the balance.} Bxf3 13. Bxf3 (13. Rxf3 a6 $15)) 12... Rc8 {[%emt 0:00:18]} (12... Qe7 $17 {[%cal Rf6e4]} 13. Re1 Nxe4) 13. Be3 {[%emt 0:00:49]} (13. f5 $11) 13... a6 {[%emt 0:00:57]} (13... Qe7 $17 {[%cal Rf6e4]} 14. e5 dxe5) 14. a5 {[%emt 0:02:32]} (14. Rae1 $15) 14... c4 {[%emt 0:00:31]} ({Better is} 14... Nxe4 15. Nxe4 Bf5) 15. Ra4 {[%emt 0:08:19] [#]} (15. Bf2 $17 {was necessary.}) 15... Nc5 {[%emt 0:00:53]} ({Black should try} 15... Nxe4 $1 $19 16. Nxe4 Rxe4 17. Qxe4 Bf5 (17... Bxb2 $2 18. Rxc4 Nc5 19. Qc2 $18) 18. Qxc4 Rxc4 19. Rxc4 Bxb2) 16. Bxc5 $15 {[%emt 0:00:27]} (16. Rxc4 Ncxe4 (16... Qxa5 $2 17. b4 $18) 17. Bb6 Qd7 18. Nxe4 Rxe4 (18... Nxd5 19. Rxc8 Rxc8 20. Qb3 $18) 19. Rxc8+ Qxc8 20. Qxc8+ Bxc8 $17) 16... Rxc5 {[%emt 0:00:04]} 17. Bxc4 $2 {[%emt 0:00:15] [#] Loses the game.} (17. h3 $17 Bd7 18. Rxc4) 17... Bd7 $1 $19 {[%emt 0:01:10][%cal Of6e4] aiming for ...Nxe4!} ({Don't take} 17... Rxa5 18. e5 Bf5 19. Qb3 Rxa4 20. Nxa4 $19) 18. Rb4 {[%emt 0:21:24]} Qxa5 {[%emt 0:00:07]} ({Less strong is} 18... Rxa5 19. Rxb7 Qc8 20. Qb3 $15 (20. b4 $2 Ra3 $19)) 19. Qb3 {[%emt 0:01:06]} b5 {[%emt 0:00:05]} 20. Bd3 {[%emt 0:00:16]} Qb6 {[%emt 0:00:06]} 21. Rd4 {[%emt 0:03:37]} (21. Kh1 {was forced.} a5 22. Ra4) 21... Ng4 {[%emt 0:00:14]} 22. e5 $2 {[%emt 0:00:03]} (22. Kh1) 22... dxe5 {[%emt 0:00:07] Black is clearly winning.} 23. fxe5 {[%emt 0:00:03]} Nxe5 {[%emt 0:00:06]} 24. Nxe5 {[%emt 0:00:39]} Bxe5 {[%emt 0:00:03]} 25. Ne2 {[%emt 0:02:05]} Rcc8 {[%emt 0:00:03] Weighted Error Value: White=1.04/Black=0.43.  Mistake:       	White=7     	Black=4      Inaccurate:     	White=1     	Black=1      OK:         	White=3     	Black=4      Best:        	White=1     	---        Strong:       	---       	Black=1} 0-1

[Event "3rd Rio Open 2024"]
[Site "Rio de Janeiro"]
[Date "2024.04.23"]
[Round "1.2"]
[White "Matsuura, Everaldo"]
[Black "De Freitas, Julio Eimard"]
[Result "1-0"]
[ECO "B90"]
[WhiteElo "2380"]
[BlackElo "1877"]
[Annotator "TA"]
[PlyCount "59"]
[EventDate "2024.04.12"]
[EventType "swiss"]
[EventCountry "BRA"]
[SourceTitle "playchess.com"]
[Source "ChessBase"]
[SourceQuality "1"]
[TimeControl "5400+30"]

{[%evp 21,59,3,30,0,16,22,38,44,50,89,46,-109,0,-75,103,39,228,228,229,233,502,508,508,497,516,512,516,494,509,513,1789,967,1124,1114,29978,29980,29979,29980,29984,29980]} 1. e4 {[%emt 1:31:00]} c5 {[%emt 1:31:00]} 2. Nf3 {[%emt 0:00:30]} d6 {[%emt 0:00:30]} 3. d4 {[%emt 0:00:30]} cxd4 {[%emt 0:00:30]} 4. Nxd4 {[%emt 0:00:30]} Nf6 {[%emt 0:00:30]} 5. Nc3 {[%emt 0:00:30]} a6 {[%emt 0:00:30]} 6. f3 {[%emt 0:00:30]} e5 {[%emt 0:00:30]} 7. Nb3 {[%emt 0:00:30]} Be6 {[%emt 0:00:30]} 8. Be3 {[%emt 0:00:30]} Be7 {[%emt 0:00:30]} 9. Qd2 {[%emt 0:00:30]} b5 {[%emt 0:00:30][%cal Bb7b5,Bb5b4,Bb4c3][%mdl 32]} 10. O-O-O {[%emt 0:00:30]} Nbd7 {[%emt 0:00:30]} 11. g4 {[%emt 0:00:30][%cal Bg2g4,Bg4g5,Bg5f6][%mdl 32]} O-O {[%emt 0:00:30]} 12. Rg1 {[%emt 0:00:30]} Rc8 {[%emt 0:00:30]} 13. g5 {[%emt 0:00:30]} b4 {[%emt 0:00:30]} (13... Nh5 {simplifies} 14. Kb1 Nb6 15. Qf2 Nc4) 14. gxf6 {[%emt 0:00:30] White is slightly better.} bxc3 {[%emt 0:00:30]} 15. Rxg7+ {[%emt 0:00:30]} Kh8 {[%emt 0:00:30]} 16. Qg2 {[%emt 0:00:30]} (16. bxc3 $14 Nxf6 17. Bh6) 16... Nxf6 {[%emt 0:00:30]} ({Black should play} 16... Bxf6 $17 17. Rg3 Bh4 (17... cxb2+ 18. Kxb2 Nb6 19. Bxb6 $11)) 17. Bh6 {[%emt 0:00:30]} (17. Bxa6 $11 Ra8 18. Rg1) 17... Rg8 $2 {[%emt 0:00:30]} (17... Nh5 $17 {and life is bright. Threatens to win with ...Qc7.} 18. Rg4 Qc7 19. Bxa6 Bxg4 (19... cxb2+ 20. Kxb2 Bxg4 21. fxg4 $11) 20. Bxc8 Rxc8 (20... Bxc8 $2 21. Rg1 $18) 21. fxg4 Nf4 22. Bxf4 cxb2+ 23. Kb1 exf4) 18. Bxa6 {[%emt 0:00:30] White is more active.} (18. Rxg8+ Qxg8 19. Qg5 (19. Qxg8+ Rxg8 20. Be3 d5 $14) 19... Qg6 $14) (18. Bd3 $16) 18... Nh5 $2 {[%emt 0:00:30] [#] This move loses the game for Black.} (18... Ra8 $1 $14 19. Rg1 (19. Rxg8+ Qxg8 20. Rg1 Qg6 $17) 19... Ng4 (19... Rxa6 20. Rxg8+ Qxg8 21. Qxg8+ Nxg8 22. Bg7#) (19... cxb2+ $2 20. Kxb2 $18) 20. Rxg8+ (20. fxg4 $2 Rxg7 21. Bxg7+ Kxg7 $19) 20... Qxg8) 19. Rg1 $1 $40 {[%emt 0:00:30][%mdl 128] White attacks with force.} cxb2+ {[%emt 0:00:30]} 20. Kxb2 {[%emt 0:00:30]} Bf6 $2 {[%emt 0:00:30]} (20... Re8 {is a better defense.} 21. Bxc8 Qxc8) 21. Rxg8+ {[%emt 0:00:30]} Qxg8 {[%emt 0:00:30]} 22. Bxc8 {[%emt 0:00:30]} Qxc8 {[%emt 0:00:30]} 23. Bg5 {[%emt 0:00:30][%cal Bh6g5,Bg5e7,Be7b4][%mdl 32] Bxf6+ would kill now.} Bg7 {[%emt 0:00:30]} 24. Be7 {[%emt 0:00:30]} d5 {[%emt 0:00:30]} 25. Qg5 {[%emt 0:00:30]} d4 {[%emt 0:00:30]} (25... Qe8 $142 26. exd5 Bd7) 26. Bb4 {[%emt 0:00:30]} Qb8 {[%emt 0:00:30]} 27. a3 {[%emt 0:00:30]} Bxb3 {[%emt 0:00:30]} 28. cxb3 {[%emt 0:00:30] White mates.} Qb6 {[%emt 0:00:30]} 29. Qxh5 {[%emt 0:00:30]} d3 {[%emt 0:00:30]} 30. Rg2 {[%emt 0:00:30] Weighted Error Value: White=0.30/Black=1.03.  Loses game:     	---       	Black=1      Mistake:       	White=3     	Black=4      Inaccurate:     	White=1     	---        OK:         	White=7     	Black=3      Best:        	White=2     	Black=1} 1-0

[Event "3rd Rio Open 2024"]
[Site "Rio de Janeiro"]
[Date "2024.04.23"]
[Round "1.3"]
[White "Brito, Vicente De Paulo Ale"]
[Black "Hoffman, Alejandro"]
[Result "0-1"]
[ECO "A45"]
[WhiteElo "1875"]
[BlackElo "2379"]
[Annotator "TA"]
[PlyCount "90"]
[EventDate "2024.04.12"]
[EventType "swiss"]
[EventCountry "BRA"]
[SourceTitle "playchess.com"]
[Source "ChessBase"]
[SourceQuality "1"]
[TimeControl "5400+30"]

{[%evp 9,90,-2,0,0,23,0,0,-29,-27,-48,-49,-60,-42,-42,-21,-22,-25,-114,-15,-16,-14,-37,-37,-142,-49,-60,-50,-226,-228,-235,-234,-270,-255,-242,-244,-252,-260,-255,-263,-269,-280,-302,-301,-492,-260,-262,-247,-233,-228,-300,-142,-180,-147,-142,-132,-76,-91,-227,-202,-337,-308,-316,-308,-308,-308,-483,-379,-541,-534,-581,-570,-532,-262,-437,-437,-501,-411,-1218,-1213,-1060,-1036,-7206,-6901]} 1. d4 {[%emt 0:00:06]} Nf6 {[%emt 0:00:14]} 2. Nc3 {[%emt 0:00:09]} d6 {[%emt 0:00:33]} 3. Bf4 {[%emt 0:00:17]} Nbd7 {[%emt 0:02:17]} 4. Nf3 {[%emt 0:00:27]} c5 {[%emt 0:00:29]} 5. e3 {[%emt 0:00:52]} a6 {[%emt 0:00:10]} 6. a4 {[%emt 0:02:51]} b6 {[%emt 0:00:26]} 7. Bd3 {[%emt 0:03:35]} Bb7 {[%emt 0:00:24]} 8. Qe2 {[%emt 0:09:47] The position is equal.} g6 {[%emt 0:01:11]} 9. h4 {[%emt 0:00:50][%cal Od4d5]} Bg7 {[%emt 0:01:24]} 10. Rd1 {[%emt 0:06:52][%cal Od4d5]} Qc7 {[%emt 0:07:49]} 11. Bh2 {[%emt 0:07:32]} h6 {[%emt 0:01:50]} 12. Bc4 {[%emt 0:05:00]} O-O {[%emt 0:06:52]} 13. d5 {[%emt 0:08:02]} (13. O-O $1 $11) 13... Rfb8 {[%emt 0:05:48]} (13... b5 $1 $17 {[%cal Rb5c4]} 14. axb5 axb5 15. Bxb5 Nxd5 16. Nxd5 Bxd5) 14. e4 {[%emt 0:17:43]} Ng4 {[%emt 0:00:23]} 15. Bf4 {[%emt 0:01:06]} Bc8 {[%emt 0:00:27][%cal Ob6b5]} 16. Qd2 {[%emt 0:06:08]} (16. Bd3 $15) 16... Ndf6 {[%emt 0:05:48]} (16... b5 $1 $17 {[%cal Rb5c4]} 17. Be2 (17. axb5 $2 axb5 18. Nxb5 Qa5 $19) 17... Ndf6 (17... b4 18. Nb1 $17)) 17. O-O {[%emt 0:07:15]} Nh5 {[%emt 0:02:15]} 18. Nh2 $2 {[%emt 0:06:25] [#]} ({White should try} 18. Be2 $15) 18... Nxf4 $1 $19 {[%emt 0:01:36]} 19. Nxg4 {[%emt 0:00:48]} Bxg4 {[%emt 0:00:09]} 20. f3 {[%emt 0:00:18]} Bd4+ {[%emt 0:03:35]} 21. Kh1 {[%emt 0:01:54]} Nh5 {[%emt 0:00:09]} 22. fxg4 {[%emt 0:04:27]} Ng3+ {[%emt 0:00:07]} 23. Kh2 {[%emt 0:00:10]} Nxf1+ {[%emt 0:00:08]} 24. Rxf1 {[%emt 0:00:22]} Qd7 {[%emt 0:00:27]} 25. Qe2 {[%emt 0:02:05]} b5 {[%emt 0:02:44]} 26. Qf3 $2 {[%emt 0:03:00]} (26. axb5 Be5+ 27. g3) 26... f6 {[%emt 0:01:10]} (26... bxc4 $142 27. Qxf7+ Kh8 28. Qxg6 Bg7 (28... Rxb2 29. Rf7 Be5+ 30. Kh1)) 27. axb5 {[%emt 0:01:10]} axb5 {[%emt 0:00:09]} 28. Be2 {[%emt 0:02:21]} Bxc3 {[%emt 0:04:02]} 29. bxc3 {[%emt 0:00:28]} g5 {[%emt 0:00:27]} (29... Kg7 $19 {is more deadly. Threatens to win with ...Ra2.} 30. h5 Ra3) 30. e5 $17 {[%emt 0:00:35]} dxe5 {[%emt 0:01:19]} 31. Qe4 {[%emt 0:00:39] [#]} Qe8 {[%emt 0:03:59] Prevents Qg6+} (31... gxh4 $2 32. Qg6+ Kh8 33. Qxh6+ Kg8 34. Qg6+ (34. Qxh4 $2 Kg7 $19) 34... Kh8 35. Rf5 $18) 32. hxg5 {[%emt 0:00:24]} hxg5 {[%emt 0:00:17]} 33. Bd3 {[%emt 0:00:48]} (33. Rf3 $17) 33... Qf7 $19 {[%emt 0:00:28]} 34. Qf3 {[%emt 0:00:09]} (34. Qf5 {was called for.}) 34... Kg7 {[%emt 0:02:08]} 35. Kg3 {[%emt 0:01:18]} c4 {[%emt 0:01:47]} 36. Bf5 {[%emt 0:00:33]} Rh8 {[%emt 0:00:19]} 37. Be6 {[%emt 0:00:39]} (37. Kf2 {might work better.}) 37... Qg6 {[%emt 0:00:24]} 38. d6 {[%emt 0:00:47]} (38. Bf5 $142 Qe8 (38... Qh6 $2 39. Kf2 $19) 39. Rb1) 38... e4 {[%emt 0:01:47]} (38... exd6 $2 {too greedy.} 39. Qb7+ Kf8 40. Qxa8+ Qe8 41. Rxf6+ Kg7 42. Qf3 $18) 39. Qe3 {[%emt 0:01:24]} Qh7 {[%emt 0:05:59][%csl Gg5,Gh8][%cal Rh7h4]} ({Weaker is} 39... exd6 40. Qb6 Raf8 41. Qxd6 $17) 40. Kf2 {[%emt 0:00:42]} Qh2 {[%emt 0:00:09]} (40... Ra2 $142 41. Rc1 exd6) 41. Qxe4 {[%emt 0:00:05]} (41. d7 Qf4+ 42. Ke2 Qxe3+ (42... Qe5 43. Bf5 $19) 43. Kxe3) 41... Qxd6 {[%emt 0:00:11] aiming for ...Ra3.} 42. Re1 {[%emt 0:00:54]} Ra7 {[%emt 0:02:46] Strongly threatening ...Qd2+.} (42... Qf4+ $2 43. Qxf4 gxf4 44. Bd5 $19) 43. Re2 {[%emt 0:00:32]} (43. Bd5 $142) 43... Rh1 {[%emt 0:01:01] ( -> ...Raa1). Black is clearly winning.} 44. Bd5 {[%emt 0:00:28]} Rd1 {[%emt 0:03:24]} 45. Bb7 {[%emt 0:00:28]} Qb6+ {[%emt 0:00:21] Weighted Error Value: White=0.72/Black=0.41.  Loses game:     	White=1     	---        Mistake:       	White=9     	Black=5      Inaccurate:     	White=2     	---        OK:         	White=8     	Black=15     Best:        	White=2     	Black=3      Strong:       	---       	Black=1} 0-1

[Event "3rd Rio Open 2024"]
[Site "Rio de Janeiro"]
[Date "2024.04.23"]
[Round "1.4"]
[White "Lima, Darcy"]
[Black "Felix, Raimundo Nascimento"]
[Result "1-0"]
[ECO "B38"]
[WhiteElo "2369"]
[BlackElo "1850"]
[Annotator "TA"]
[PlyCount "89"]
[EventDate "2024.04.12"]
[EventType "swiss"]
[EventCountry "BRA"]
[SourceTitle "playchess.com"]
[Source "ChessBase"]
[SourceQuality "1"]
[TimeControl "5400+30"]

{[%evp 22,89,58,66,82,46,93,69,66,64,86,92,93,68,97,79,104,88,102,112,95,100,137,110,111,87,133,96,110,103,115,110,125,72,114,-34,-21,0,-37,-3,-4,-160,94,68,130,133,210,139,271,267,266,247,345,360,400,307,657,570,530,497,755,758,849,747,763,839,751,866,1181,1155]} 1. e4 {[%emt 0:00:06]} c5 {[%emt 0:00:11]} 2. Nf3 {[%emt 0:00:06]} a6 {[%emt 0:00:21]} 3. c4 {[%emt 0:00:10]} Nc6 {[%emt 0:00:46]} 4. Nc3 {[%emt 0:00:19]} d6 {[%emt 0:01:37]} 5. d4 {[%emt 0:01:54]} cxd4 {[%emt 0:00:25]} 6. Nxd4 {[%emt 0:00:08]} Nf6 {[%emt 0:00:06]} 7. Be2 {[%emt 0:00:14]} g6 {[%emt 0:00:27]} 8. Be3 {[%emt 0:00:07]} Bg7 {[%emt 0:00:08]} 9. O-O {[%emt 0:00:45]} O-O {[%emt 0:00:15]} 10. f3 {[%emt 0:00:58]} Bd7 {[%emt 0:03:04]} 11. Qd2 {[%emt 0:00:11]} Rb8 {[%emt 0:00:46]} 12. Nc2 {[%emt 0:04:35]} Ne5 {[%emt 0:02:52]} 13. Na3 {[%emt 0:00:15]} Bc6 {[%emt 0:02:33]} (13... Qa5 $14) 14. b4 {[%emt 0:00:44]} b6 {[%emt 0:01:19] White is slightly better.} 15. Rac1 {[%emt 0:01:34]} Ba8 {[%emt 0:01:37]} 16. Rfd1 {[%emt 0:01:33]} h5 {[%emt 0:05:27]} 17. Qe1 {[%emt 0:03:08]} Nfd7 {[%emt 0:07:30]} 18. h3 {[%emt 0:14:04]} Kh7 {[%emt 0:03:56]} 19. f4 {[%emt 0:02:50]} Nc6 {[%emt 0:00:08]} 20. Nc2 {[%emt 0:00:17]} Qc8 {[%emt 0:07:04]} 21. a3 {[%emt 0:03:04]} Qb7 {[%emt 0:01:51]} 22. Bf3 {[%emt 0:01:11]} Qc8 {[%emt 0:03:43]} 23. Na1 {[%emt 0:10:18]} a5 {[%emt 0:02:14]} ({Better is} 23... b5) 24. Nb5 {[%emt 0:01:10]} axb4 {[%emt 0:01:49]} 25. axb4 {[%emt 0:00:03]} Bb7 {[%emt 0:00:48]} 26. Nc2 {[%emt 0:06:48] White is more active.} Ra8 {[%emt 0:00:35]} 27. g4 {[%emt 0:00:20]} (27. Nc3 $142) 27... hxg4 {[%emt 0:02:51]} 28. hxg4 {[%emt 0:00:03]} (28. Qh4+ $1 $16 Kg8 29. hxg4 (29. Qxg4 Ra2 $11)) 28... Rh8 $1 $15 {[%emt 0:00:53]} 29. g5 {[%emt 0:02:48]} Kg8 {[%emt 0:00:41][%cal Od7e5]} 30. Bg2 {[%emt 0:02:31]} Ra2 {[%emt 0:04:16]} 31. Nc3 $2 {[%emt 0:00:39] [#]} (31. Rd2 $11) 31... Ra8 $2 {[%emt 0:01:53]} (31... Nxb4 $1 $17 {keeps the pressure on.} 32. Nxb4 Bxc3 33. Qxc3 Rxg2+ 34. Kxg2 Ne5) 32. Nd5 $16 {[%emt 0:01:13][%cal Ob4b5] Hoping for b5!} Qd8 {[%emt 0:00:38]} ({Black should play} 32... Bf8 $14) 33. e5 $36 {[%emt 0:03:20][%mdl 2048] Black is under strong pressure.} Rc8 {[%emt 0:12:02]} (33... Ncxe5 $16 {keeps fighting.} 34. Nxe7+ (34. fxe5 Nxe5 35. Bxb6 Qd7 $16) 34... Qxe7 35. Bxb7 Rc8) 34. Qf2 {[%emt 0:06:47]} Qe8 {[%emt 0:02:57] [#]} (34... Ncxe5 $16 35. fxe5 Bxe5) 35. exd6 $1 $18 {[%emt 0:02:22]} (35. Bxb6 dxe5 36. b5 e6 $16) (35. Nxb6 Nxb6 36. Bxb6 dxe5 $14) 35... exd6 {[%emt 0:00:56]} 36. Re1 {[%emt 0:02:12]} ({Weaker is} 36. Nxb6 Nxb6 37. Bxb6 Nd8 $16) (36. Bxb6 $6 Ne7 $18) 36... Qd8 {[%emt 0:02:17]} 37. Rcd1 {[%emt 0:04:22]} ({But not} 37. Bxb6 Nxb6 38. Qxb6 Rb8 39. Qxd8+ Rxd8) 37... Ba8 {[%emt 0:01:12]} 38. Bxb6 {[%emt 0:04:26][%cal Be3b6,Bb6d4,Bd4b2][%mdl 32]} Qf8 {[%emt 0:05:13]} (38... Nxb6 39. Nxb6 Nxb4) 39. b5 {[%emt 0:01:42][%cal Bb4b5,Bb5b6][%mdl 32] White is clearly winning.} Nce5 {[%emt 0:02:00]} 40. fxe5 {[%emt 0:00:15]} Nxe5 {[%emt 0:00:21]} (40... Bxe5 $142 41. Bd4 (41. Rxe5 dxe5 42. c5 Rh5 $18) 41... Bxd5) 41. Nce3 {[%emt 0:01:17]} Qe8 {[%emt 0:03:18]} 42. Bd4 {[%emt 0:05:11]} Qe6 {[%emt 0:01:29]} 43. b6 {[%emt 0:01:53]} Bc6 {[%emt 0:00:55]} 44. Bb2 {[%emt 0:03:39]} Rh5 {[%emt 0:00:28]} 45. Nf4 {[%emt 0:11:28][%csl LRe6,LRh5] Weighted Error Value: White=0.33/Black=0.48.  Mistake:       	White=3     	Black=8      Inaccurate:     	White=2     	Black=3      OK:         	White=12    	Black=8      Strong:       	White=1     	Black=1} 1-0

[Event "3rd Rio Open 2024"]
[Site "Rio de Janeiro"]
[Date "2024.04.23"]
[Round "1.5"]
[White "Rodrigues, Julliano de Araujo"]
[Black "Piccoli, Lucas Fonseca"]
[Result "0-1"]
[ECO "B33"]
[WhiteElo "1843"]
[BlackElo "2274"]
[Annotator "TA"]
[PlyCount "120"]
[EventDate "2024.04.12"]
[EventType "swiss"]
[EventCountry "BRA"]
[SourceTitle "playchess.com"]
[Source "ChessBase"]
[SourceQuality "1"]
[TimeControl "5400+30"]

{[%evp 24,120,12,5,22,16,30,0,0,-7,-7,0,0,0,0,0,0,0,0,0,22,-38,0,0,0,0,2,0,0,0,0,0,0,0,48,-168,-166,-167,-162,-315,-297,-302,-292,-269,-191,-198,-198,-1580,-179,-166,-126,-206,-127,-161,-80,-90,-89,-79,-82,-82,-91,-179,-177,-172,-154,-144,-100,-223,-265,-255,-251,-218,-110,-275,-261,-462,-452,-558,-552,-1093,-345,-409,-375,-384,-284,-441,-504,-605,-586,-859,-860,-992,-978,-1270,-1279,-1602,-797,-2674,-2772]} 1. e4 {[%emt 0:00:03]} c5 {[%emt 0:03:38]} 2. Nf3 {[%emt 0:00:12]} Nc6 {[%emt 0:00:08]} 3. d4 {[%emt 0:00:17]} cxd4 {[%emt 0:00:07]} 4. Nxd4 {[%emt 0:00:08]} Nf6 {[%emt 0:00:13]} 5. Nc3 {[%emt 0:00:11]} e5 {[%emt 0:00:06]} 6. Ndb5 {[%emt 0:00:28]} d6 {[%emt 0:00:09]} 7. Bg5 {[%emt 0:00:32]} a6 {[%emt 0:00:08]} 8. Na3 {[%emt 0:00:06]} b5 {[%emt 0:00:07]} 9. Nd5 {[%emt 0:00:05]} Be7 {[%emt 0:00:07]} 10. Bxf6 {[%emt 0:00:14]} Bxf6 {[%emt 0:00:07]} 11. c4 {[%emt 0:00:25]} b4 {[%emt 0:00:08] B33: Sicilian: Pelikan and Sveshnikov Variations.} 12. Nc2 {[%emt 0:00:05]} O-O {[%emt 0:00:12]} 13. g3 {[%emt 0:00:29]} Be6 {[%emt 0:00:31]} 14. Bg2 {[%emt 0:00:13] 14.h4 is vanishing.} (14. Ncxb4 Nxb4 15. Nxb4 Qb6 $19) 14... Bxd5 {[%emt 0:00:07]} 15. Qxd5 {[%emt 0:01:09]} Qb6 {[%emt 0:07:32]} 16. b3 {[%emt 0:05:36]} (16. Qxd6 $2 Rfd8 $19) 16... Nd4 {[%emt 0:10:48]} 17. Nxd4 {[%emt 0:00:53]} exd4 {[%emt 0:00:07]} 18. Qf5 {[%emt 0:25:04]} d3 {[%emt 0:18:12]} 19. e5 $146 {[%emt 0:07:22]} ({Predecessor:} 19. Rd1 Bc3+ 20. Kf1 d2 21. h4 Rae8 22. Qd5 Re5 23. Qd3 f5 24. Qe3 Qc7 25. f4 fxe4 {0-1 Calvo Gonzalez,J (1762)-Ruiz Gonzalez,J (2102) ESP-ch U18 Salobrena 2020 (4)}) 19... d2+ {[%emt 0:08:30]} (19... dxe5 $2 20. Bxa8 Rxa8 21. Qxd3 $18) (19... Bxe5 $5 20. Rd1 $8 Bc3+ 21. Kf1 d2 22. Bxa8 Rxa8 $11) 20. Kf1 $1 {[%emt 0:01:56]} (20. Kxd2 $2 Qd4+ 21. Ke2 Rae8 $19) 20... Qd4 {[%emt 0:10:54]} (20... Bxe5 $5 21. Rd1 $8 Rae8 (21... g6 22. Qd3 $11) 22. Rxd2 Bc3 $19) 21. Rd1 {[%emt 0:02:12]} Rae8 {[%emt 0:00:05]} 22. Qf4 {[%emt 0:12:46]} (22. exf6 $11 Re1+ 23. Rxe1 dxe1=Q+ (23... d1=Q 24. Bf3 $16) 24. Kxe1 Re8+ 25. Be4 Rxe4+ (25... Qxe4+ $2 26. Qxe4 Rxe4+ 27. Kd2 $16) (25... g6 26. Qf3 $16) 26. Kf1 gxf6 27. Qf3) 22... Qd3+ {[%emt 0:02:01]} (22... Qxf4 {simplifies} 23. gxf4 dxe5 24. Rxd2 exf4 25. Bf3 Rd8) 23. Kg1 {[%emt 0:01:03]} Rxe5 {[%emt 0:06:47]} 24. Qxd2 {[%emt 0:00:12]} Qf5 {[%emt 0:05:44]} 25. h4 {[%emt 0:19:34]} (25. Qxd6 Re2 26. Qb6 Qc2 $17 (26... Rxa2 27. Bd5 $15)) 25... Rfe8 {[%emt 0:01:57]} 26. Bh3 {[%emt 0:00:13]} (26. Qxd6 Re2 27. Qb6 h5 $15 (27... Rxa2 28. Bc6 $11)) 26... Qf3 {[%emt 0:00:32]} 27. Bg2 {[%emt 0:02:48]} Qf5 {[%emt 0:01:08]} 28. Bh3 {[%emt 0:00:13]} Qh5 {[%emt 0:05:12]} (28... Qf3 $11 29. Bg2 Qe2) 29. Kh2 $2 {[%emt 0:04:55]} (29. Kg2 $14 {stays ahead.}) 29... Re2 $1 $19 {[%emt 0:02:04]} 30. Rhe1 {[%emt 0:00:11]} Qf3 $1 {[%emt 0:04:24]} 31. Bg2 $2 {[%emt 0:02:29]} (31. Rxe2 $2 Rxe2 32. Qf4 Rxf2+ 33. Kg1 Qxd1+ $19) (31. Qf4 Rxf2+ (31... Qxf2+ 32. Qxf2 Rxf2+ 33. Kg1 $15) (31... Qxf4 32. Rxe2 Rxe2 33. gxf4 $17) 32. Kg1 Rxe1+ 33. Rxe1) 31... Qxf2 $19 {[%emt 0:00:10]} 32. Rxe2 {[%emt 0:00:08]} Rxe2 {[%emt 0:00:02]} 33. Qd5 {[%emt 0:00:23]} h6 {[%emt 0:05:24]} (33... Rxa2 34. Qa8+) 34. Qa8+ {[%emt 0:04:36]} Kh7 {[%emt 0:00:06]} 35. Rxd6 $2 {[%emt 0:00:20] [#]} (35. Rd3) 35... Bxh4 $2 {[%emt 0:01:23]} (35... Rxa2 36. h5 $17) (35... Re3 $1 {[%mdl 512]} 36. Rxf6 Qxg3+ (36... Qxf6 $2 37. Qd5 $19) (36... gxf6 $2 37. Qb8 $19) 37. Kh1 Qxh4+ (37... gxf6 $2 38. Bf1 $19) 38. Kg1 Qxf6 (38... gxf6 $2 39. Qd5 $19)) 36. Rd3 $19 {[%emt 0:01:19]} Bf6 {[%emt 0:01:50]} 37. Qd5 {[%emt 0:03:39]} (37. Qf3 $17) 37... Bc3 {[%emt 0:03:39]} 38. Kh3 {[%emt 0:00:16]} Re5 {[%emt 0:00:49]} (38... Be5 $19 39. Qf3 g5 (39... Rxa2 40. Rd5 $17) 40. Qxf2 Rxf2) 39. Rf3 {[%emt 0:04:57]} Rxd5 {[%emt 0:03:16]} ({Much worse is} 39... Qxa2 $6 40. Qxf7 (40. Qd3+ Kg8 $11) 40... Re2 (40... Qxb3 $2 {loses.} 41. Bf1 $18) 41. Rf2 $11) 40. Rxf2 {[%emt 0:00:06]} Rh5+ {[%emt 0:00:02]} 41. Kg4 {[%emt 0:00:09]} Rg5+ {[%emt 0:00:01]} 42. Kf3 {[%emt 0:00:40]} (42. Kh3 $17) 42... Be1 $19 {[%emt 0:00:32]} 43. Rc2 {[%emt 0:01:45]} Rxg3+ {[%emt 0:01:25]} 44. Ke4 {[%emt 0:00:16]} Bc3 {[%emt 0:01:18]} 45. c5 {[%emt 0:00:32] [#]} (45. Kd5 $17) 45... Rg5 $1 $19 {[%emt 0:00:16]} 46. c6 {[%emt 0:00:11]} Rc5 {[%emt 0:00:01]} 47. Kd3 {[%emt 0:00:21]} Kg6 {[%emt 0:00:24]} ({Black should try} 47... g5 $19 {And now ...f5 would win.} 48. a3 a5) 48. Re2 $2 {[%emt 0:00:05]} (48. a3 $17 a5 49. axb4 axb4 50. Rf2) 48... Be5 {[%emt 0:00:14]} 49. Be4+ $2 {[%emt 0:02:27]} (49. Re4 Kf5 50. Rxb4) 49... f5 $19 {[%emt 0:00:16]} 50. Bg2 {[%emt 0:00:38]} Kf6 {[%emt 0:00:19]} 51. Rc2 {[%emt 0:00:20]} Bc3 $2 {[%emt 0:00:32]} (51... Rxc2 52. Kxc2 g5) 52. Re2 {[%emt 0:00:10]} Kf7 {[%emt 0:00:35]} 53. Bf3 {[%emt 0:00:37]} g6 {[%emt 0:00:05]} 54. Ke3 {[%emt 0:00:43]} (54. Rh2 {is a better defense.}) 54... g5 $19 {[%emt 0:01:10]} 55. Kd3 {[%emt 0:00:20]} g4 {[%emt 0:00:13]} 56. Bg2 {[%emt 0:00:05]} h5 {[%emt 0:00:35]} 57. Ke3 {[%emt 0:00:19]} Be5 {[%emt 0:00:07]} 58. Kd3 {[%emt 0:00:33]} h4 {[%emt 0:00:38]} 59. Rf2 {[%emt 0:00:46]} Ke6 {[%emt 0:00:23]} (59... Rc3+ $142 60. Ke2 Kg6) 60. Ke3 {[%emt 0:01:07]} h3 {[%emt 0:00:18]} 0-1